fUST/lending_fUST_20251030
["ID","MTS","AMOUNT","RATE_DAILY","PERIOD"]
[392626734,1761758615593,-151.0,0.00019212,2]
[392626735,1761758615626,-151.0,0.00019212,2]
[392626736,1761758615656,-151.0,0.00019212,2]
[392626737,1761758615687,-151.0,0.00019212,2]
[392626738,1761758615720,-151.0,0.00019212,2]
[392626739,1761758615751,-151.0,0.00019212,2]
[392626740,1761758615782,-151.0,0.00019212,2]
[392626741,1761758615813,-151.0,0.00019212,2]
[392626742,1761758615842,-151.0,0.00019212,2]
[392626743,1761758615877,-151.0,0.00019212,2]
[392626746,1761758625279,1690.20062183,0.00019212,2]
[392626747,1761758627243,500.0,0.00019211,2]
[392626748,1761758627282,169.36175277,0.00019211,2]
[392626749,1761758627305,330.63824723,0.00019211,2]
[392626750,1761758627330,250.0,0.00019211,2]
[392626751,1761758627580,500.0,0.00019211,2]
[392626752,1761758627913,279.51292683,0.00019211,2]
[392626753,1761758643387,300.0,0.00019211,2]
[392626756,1761758696103,589.92630213,0.00019211,2]
[392626757,1761758701718,247.0,0.00019211,2]
[392626758,1761758702802,300.0,0.00019211,2]
[392626759,1761758702835,300.0,0.00019211,2]
[392626760,1761758703145,300.0,0.00019211,2]
[392626764,1761758708655,300.0,0.00019211,2]
[392626766,1761758711274,1200.0,0.00019211,2]
[392626782,1761758775952,-214.66511427,0.00019212,2]
[392626784,1761758795114,1337.39954016,0.00019181,2]
[392626788,1761758848123,-248.68521643,0.00019212,2]
[392626790,1761758850096,-1632.03672884,0.00019212,2]
[392626793,1761758864486,500.0,0.00019211,2]
[392626794,1761758866476,-300.00345292,0.00019212,2]
[392626795,1761758869659,-166.00000003,0.00019212,2]
[392626796,1761758870252,300.00164971,0.00019212,2]
[392626797,1761758876471,381.13537035,0.00019146,2]
[392626799,1761758893218,2584.39596359,0.00019212,2]
[392626800,1761758893242,2415.60403641,0.00019212,2]
[392626801,1761758901792,3279.0434696,0.00019212,2]
[392626802,1761758908926,286.96778653,0.0001,2]
[392626803,1761758916554,172.084945,0.00015,2]
[392626804,1761758917641,166.00000003,0.00019212,2]
[392626806,1761758951121,-99850.46074074,0.00019212,2]
[392626808,1761758969078,-129606.74425963,0.00019212,2]
[392626809,1761758970447,-222.72312098,0.00019212,2]
[392626810,1761758971855,-179.92841111,0.00019212,2]
[392626813,1761758990552,500.0,0.00019211,2]
[392626814,1761758993448,402.65153209,0.00019212,2]
[392626815,1761759004069,300.0,0.00019211,2]
[392626816,1761759009294,151.0,0.00019212,2]
[392626817,1761759010101,1200.0,0.00019211,2]
[392626818,1761759010438,151.0,0.00019212,2]
[392626819,1761759011076,151.0,0.00019212,2]
[392626820,1761759011731,151.0,0.00019212,2]
[392626821,1761759012410,151.0,0.00019212,2]
[392626822,1761759013084,151.0,0.00019212,2]
[392626823,1761759014274,151.0,0.00019212,2]
[392626824,1761759014938,151.0,0.00019212,2]
[392626825,1761759015587,151.0,0.00019212,2]
[392626826,1761759016301,151.0,0.00019212,2]
[392626828,1761759016986,151.0,0.00019212,2]
[392626829,1761759017646,151.0,0.00019212,2]
[392626830,1761759018294,151.0,0.00019212,2]
[392626831,1761759018947,151.0,0.00019212,2]
[392626832,1761759019566,151.0,0.00019212,2]
[392626833,1761759020160,151.0,0.00019212,2]
[392626834,1761759020811,151.0,0.00019212,2]
[392626835,1761759021434,151.0,0.00019212,2]
[392626836,1761759022092,151.0,0.00019212,2]
[392626837,1761759022781,151.0,0.00019212,2]
[392626838,1761759023447,726.404625,0.00013699,2]
[392626869,1761759031823,-415.13565222,0.00019212,2]
[392626870,1761759031835,-4211.01457635,0.00019212,2]
[392626871,1761759031875,-16659.99999998,0.00019212,2]
[392626909,1761759032481,197.86275811,0.00019146,2]
[392626925,1761759037737,-3776.28806406,0.00019212,2]
[392626928,1761759037748,-10558.72059971,0.00019212,2]
[392626930,1761759037759,-5156.00287111,0.00019212,2]
[392626934,1761759037792,-2303.49,0.00019212,2]
[392626946,1761759039910,-30700.0,0.00019212,2]
[392626947,1761759039922,-268.50000015,0.00019212,2]
[392626948,1761759040046,-3e-08,0.00019212,2]
[392626949,1761759040058,-368.05368,0.00019212,2]
[392626956,1761759042930,-21991.10089065,0.00019212,2]
[392626997,1761759045895,-41170.44662079,0.00019212,2]
[392626998,1761759045905,-3053.0762026,0.00019212,2]
[392626999,1761759045914,-150.0,0.00019246,2]
[392627000,1761759045924,-188.57,0.00019271,3]
[392627001,1761759045933,-565.76,0.00019271,3]
[392627002,1761759045944,-2036.63524854,0.00019281,2]
[392627003,1761759071181,500.0,0.00019211,2]
[392627004,1761759071247,500.0,0.00019211,2]
[392627005,1761759071298,278.05819032,0.00019211,2]
[392627008,1761759123865,500.0,0.00019178,2]
[392627012,1761759160284,5183.68442657,0.00019112,2]
[392627013,1761759160307,10000.01,0.00019112,2]
[392627014,1761759160328,10000.01,0.00019112,2]
[392627015,1761759160351,10000.01,0.00019112,2]
[392627016,1761759160373,10000.01,0.00019112,2]
[392627017,1761759160396,10000.01,0.00019112,2]
[392627018,1761759160418,10000.01,0.00019112,2]
[392627019,1761759160440,10000.01,0.00019112,2]
[392627020,1761759163666,-500.0,0.00019111,2]
[392627021,1761759163696,-362.24500779,0.00019111,2]
[392627022,1761759163724,-615.68896705,0.00019111,2]
[392627023,1761759163752,-500.0,0.00019111,2]
[392627024,1761759169529,-500.0,0.00019111,2]
[392627025,1761759169559,-500.0,0.00019111,2]
[392627026,1761759169589,-572.39582493,0.00019111,2]
[392627027,1761759172520,-614.30439062,0.0001892,2]
[392627028,1761759173056,-5877.52646545,0.00019112,2]
[392627029,1761759173347,-10000.01,0.00019112,2]
[392627030,1761759173501,-10000.01,0.00019112,2]
[392627032,1761759175563,-10000.01,0.00019112,2]
[392627033,1761759175697,-10000.01,0.00019112,2]
[392627034,1761759175813,-10000.01,0.00019112,2]
[392627035,1761759176046,-10000.01,0.00019112,2]
[392627036,1761759179302,153.52776202,0.00016814,2]
[392627038,1761759210519,-224.10151531,0.00018545,2]
[392627045,1761759303254,9319.0,0.0001469,2]
[392627054,1761759385287,300.0,0.000147,2]
[392627055,1761759395960,300.0,0.000147,2]
[392627056,1761759407278,300.0,0.000147,2]
[392627057,1761759418056,162.44240279,0.000147,2]
[392627058,1761759418080,137.55759721,0.000147,2]
[392627059,1761759429324,300.0,0.000147,2]
[392627060,1761759439779,300.0,0.000147,2]
[392627061,1761759439951,300.0,0.000147,2]
[392627064,1761759484279,153.53,0.00015984,2]
[392627065,1761759484654,153.53,0.00015984,2]
[392627066,1761759485315,153.53,0.00015984,2]
[392627067,1761759499461,300.0,0.000147,2]
[392627085,1761759586050,-278.8615398,0.00017628,2]
[392627086,1761759590425,3748.15067506,0.0001743,2]
[392627087,1761759598931,3303.84172009,0.0001743,2]
[392627088,1761759623538,300.0,0.000147,2]
[392627150,1761759765713,5000.0,0.0001743,2]
[392627209,1761759952083,-432.19721806,0.00017628,2]
[392627216,1761759990131,5000.0,0.0001743,2]
[392627221,1761760029083,-5000.0,0.00017628,2]
[392627222,1761760029105,-270.338537,0.00017806,2]
[392627223,1761760029126,-240.66288839,0.00017945,2]
[392627224,1761760029148,-300.0,0.00017972,2]
[392627225,1761760029167,-500.0,0.00017973,2]
[392627226,1761760029199,-500.0,0.00017973,2]
[392627227,1761760029219,-500.0,0.00017973,2]
[392627228,1761760029240,-523.81512912,0.00017973,2]
[392627229,1761760029261,-500.0,0.00017973,2]
[392627230,1761760029282,-500.0,0.00017973,2]
[392627231,1761760029303,-500.0,0.00017973,2]
[392627232,1761760029326,-20.42413885,0.00017973,2]
[392627234,1761760032118,-199.92517126,0.00017973,2]
[392627235,1761760039086,-271.35189894,0.00017973,2]
[392627236,1761760041086,-298.20367288,0.00017793,2]
[392627237,1761760042079,-4701.79632712,0.00017793,2]
[392627238,1761760042098,-28.7229298,0.00017973,2]
[392627239,1761760042116,-500.0,0.00017973,2]
[392627240,1761760042135,-500.0,0.00017973,2]
[392627241,1761760042154,-500.0,0.00017973,2]
[392627242,1761760042173,-500.0,0.00017973,2]
[392627243,1761760042192,-266.42978578,0.00017973,2]
[392627244,1761760042212,-500.0,0.00017973,2]
[392627245,1761760042234,-500.0,0.00017973,2]
[392627246,1761760042252,-500.0,0.00017973,2]
[392627247,1761760042270,-500.0,0.00017973,2]
[392627248,1761760042288,-300.0,0.00017981,2]
[392627249,1761760042308,-300.0,0.00017981,2]
[392627250,1761760042327,-300.0,0.00017981,2]
[392627251,1761760042347,-1200.0,0.00017981,2]
[392627252,1761760042369,-300.0,0.00017981,2]
[392627253,1761760042390,-500.0,0.00017982,2]
[392627254,1761760042410,-500.0,0.00017982,2]
[392627255,1761760042430,-500.0,0.00017982,2]
[392627256,1761760042450,-500.0,0.00017982,2]
[392627257,1761760042470,-500.0,0.00017982,2]
[392627258,1761760042491,-500.0,0.00017982,2]
[392627259,1761760042511,-500.0,0.00017982,2]
[392627260,1761760042531,-500.0,0.00017982,2]
[392627261,1761760042553,-500.0,0.00017982,2]
[392627262,1761760042574,-500.0,0.00017982,2]
[392627263,1761760042593,-500.0,0.00017982,2]
[392627264,1761760042614,-384.03922111,0.00017982,2]
[392627265,1761760042635,-456.85163905,0.00017982,2]
[392627266,1761760042654,-275.53923729,0.00017983,2]
[392627267,1761760042673,-45176.6041826,0.00017983,2]
[392627268,1761760042692,-164.21961969,0.00018321,2]
[392627269,1761760042712,-447.4158023,0.00018421,2]
[392627270,1761760042730,-501.42261545,0.00018521,2]
[392627271,1761760042748,-1000.0,0.00018521,2]
[392627272,1761760042767,-1000.0,0.00018521,2]
[392627273,1761760042789,-1000.0,0.00018521,2]
[392627274,1761760042809,-500.0,0.00018521,2]
[392627275,1761760042828,-500.0,0.00018521,2]
[392627276,1761760042847,-1056.97396949,0.00018521,2]
[392627277,1761760042865,-965.39798466,0.00018521,2]
[392627278,1761760042884,-1006.51712609,0.00018521,2]
[392627279,1761760042902,-794.5334864,0.00018521,2]
[392627280,1761760042922,-6643.66508183,0.00018728,2]
[392627281,1761760042940,-1200.0,0.00018728,2]
[392627282,1761760042958,-571.39438406,0.0001873,2]
[392627283,1761760042975,-351.91826978,0.0001899,2]
[392627284,1761760042993,-1000.0,0.00019068,2]
[392627285,1761760043014,-1500.0,0.00019068,2]
[392627286,1761760043034,-1500.0,0.00019068,2]
[392627287,1761760043251,-500.0,0.00019068,2]
[392627288,1761760043272,-253.57150545,0.0001907,2]
[392627289,1761760043292,-500.0,0.0001907,2]
[392627290,1761760043314,-500.0,0.0001907,2]
[392627291,1761760043334,-374.07282448,0.0001907,2]
[392627292,1761760043354,-500.0,0.0001907,2]
[392627293,1761760043376,-500.0,0.0001907,2]
[392627294,1761760043397,-33492.36804291,0.00019071,2]
[392627295,1761760046096,-272.88249536,0.00019071,2]
[392627297,1761760063814,5000.0,0.0001743,2]
[392627298,1761760064467,-257.43381489,0.00017528,2]
[392627300,1761760087612,5000.0,0.0001743,2]
[392627309,1761760111018,4114.07224488,0.0001743,2]
[392627312,1761760148099,-60.46581041,0.00017528,2]
[392627313,1761760148122,-205.79867159,0.00017528,2]
[392627314,1761760148146,-154.42577215,0.0001775,2]
[392627315,1761760152104,-84.42385847,0.0001775,2]
[392627316,1761760152124,-500.0,0.00017973,2]
[392627317,1761760152144,-500.0,0.00017973,2]
[392627318,1761760152165,-500.0,0.00017973,2]
[392627319,1761760152185,-300.0,0.0001852,2]
[392627320,1761760152205,-1000.0,0.00018521,2]
[392627321,1761760152225,-1000.0,0.00018521,2]
[392627322,1761760152245,-502.95576894,0.00018521,2]
[392627323,1761760152264,-2506.0,0.00019,2]
[392627324,1761760152283,-1500.0,0.00019068,2]
[392627325,1761760152302,-1500.0,0.00019068,2]
[392627326,1761760152320,-14416.62743573,0.00019071,2]
[392627327,1761760152338,-151.0,0.000191,2]
[392627328,1761760152358,-151.0,0.000191,2]
[392627329,1761760152378,-151.0,0.000191,2]
[392627330,1761760152399,-151.0,0.000191,2]
[392627331,1761760152418,-151.0,0.000191,2]
[392627332,1761760152437,-151.0,0.000191,2]
[392627333,1761760152456,-151.0,0.000191,2]
[392627334,1761760152475,-151.0,0.000191,2]
[392627335,1761760152495,-151.0,0.000191,2]
[392627336,1761760152513,-151.0,0.000191,2]
[392627337,1761760152532,-151.0,0.000191,2]
[392627338,1761760152551,-151.0,0.000191,2]
[392627339,1761760152571,-151.0,0.000191,2]
[392627340,1761760152589,-151.0,0.000191,2]
[392627341,1761760152610,-151.0,0.000191,2]
[392627342,1761760152628,-151.0,0.000191,2]
[392627343,1761760152650,-151.0,0.000191,2]
[392627344,1761760152669,-151.0,0.000191,2]
[392627345,1761760152689,-151.0,0.000191,2]
[392627346,1761760152709,-151.0,0.000191,2]
[392627347,1761760152729,-1493.38,0.00019102,3]
[392627348,1761760152753,-746.69,0.00019102,3]
[392627349,1761760152773,-373.35,0.00019102,3]
[392627350,1761760152793,-186.67,0.00019102,3]
[392627351,1761760152813,-560.05,0.00019102,3]
[392627352,1761760152836,-257.43,0.00019102,3]
[392627353,1761760152855,-177.50005382,0.00019111,2]
[392627354,1761760152875,-500.0,0.00019111,2]
[392627355,1761760152895,-500.0,0.00019111,2]
[392627356,1761760152915,-500.0,0.00019111,2]
[392627357,1761760152940,-161.85097713,0.00019111,2]
[392627358,1761760152960,-384.09462656,0.00019111,2]
[392627359,1761760152982,-320.44880235,0.00019111,2]
[392627360,1761760153004,-500.0,0.00019111,2]
[392627361,1761760153028,-500.0,0.00019111,2]
[392627362,1761760153049,-105449.97234452,0.00019112,2]
[392627364,1761760174068,-167.7548666,0.00019066,2]
[392627380,1761760232089,-223.73396043,0.00019066,2]
[392627381,1761760232098,-151.0,0.000191,2]
[392627382,1761760232108,-151.0,0.000191,2]
[392627383,1761760232117,-151.0,0.000191,2]
[392627384,1761760232127,-151.0,0.000191,2]
[392627386,1761760232136,-151.0,0.000191,2]
[392627388,1761760232145,-151.0,0.000191,2]
[392627390,1761760232154,-151.0,0.000191,2]
[392627392,1761760232163,-149.92452173,0.000191,2]
[392627393,1761760232175,-1.07547827,0.000191,2]
[392627394,1761760232184,-151.0,0.000191,2]
[392627395,1761760232194,-151.0,0.000191,2]
[392627397,1761760232204,-151.0,0.000191,2]
[392627399,1761760232214,-151.0,0.000191,2]
[392627401,1761760232223,-151.0,0.000191,2]
[392627403,1761760232232,-151.0,0.000191,2]
[392627406,1761760232241,-151.0,0.000191,2]
[392627408,1761760232251,-151.0,0.000191,2]
[392627411,1761760232261,-151.0,0.000191,2]
[392627414,1761760232270,-151.0,0.000191,2]
[392627416,1761760232279,-151.0,0.000191,2]
[392627418,1761760232288,-151.0,0.000191,2]
[392627420,1761760232297,-179.16,0.00019102,2]
[392627422,1761760232306,-300.0,0.00019111,2]
[392627424,1761760232316,-232.0,0.00019111,2]
[392627426,1761760232325,-328.12734652,0.00019111,2]
[392627428,1761760232337,-871.87265348,0.00019111,2]
[392627430,1761760232347,-18803.54811042,0.00019112,2]
[392627432,1761760232358,-835.24569566,0.00019112,2]
[392627434,1761760232369,-3990.6,0.00019112,2]
[392627558,1761760239016,-4001.70000001,0.00019112,2]
[392627560,1761760239027,-695.81,0.00019112,2]
[392627577,1761760240125,-3704.51237733,0.00019112,2]
[392627578,1761760240179,-12572.28225809,0.00019112,2]
[392627588,1761760240675,-13501.49489282,0.00019112,2]
[392627708,1761760243130,-322.36312694,0.00019112,2]
[392627709,1761760243237,-866.35794739,0.00019112,2]
[392627717,1761760246177,-64194.7723548,0.00019112,2]
[392627718,1761760246186,-151.0,0.00019112,2]
[392627719,1761760246195,-151.0,0.00019112,2]
[392627720,1761760246203,-151.0,0.00019112,2]
[392627721,1761760246212,-151.0,0.00019112,2]
[392627722,1761760246221,-151.0,0.00019112,2]
[392627723,1761760246231,-151.0,0.00019112,2]
[392627724,1761760246239,-151.0,0.00019112,2]
[392627725,1761760246248,-151.0,0.00019112,2]
[392627726,1761760246257,-153.21902083,0.00019112,2]
[392627727,1761760246267,-500.0,0.00019166,2]
[392627728,1761760246276,-500.0,0.00019166,2]
[392627729,1761760246285,-500.0,0.00019173,2]
[392627730,1761760246293,-558.68533163,0.00019173,2]
[392627731,1761760246302,-500.0,0.00019173,2]
[392627732,1761760246310,-500.0,0.00019173,2]
[392627733,1761760246319,-500.0,0.00019173,2]
[392627734,1761760246328,-500.0,0.00019173,2]
[392627735,1761760246336,-500.0,0.00019173,2]
[392627736,1761760246345,-500.0,0.00019173,2]
[392627737,1761760246354,-152.22430616,0.00019178,2]
[392627738,1761760246363,-151.1644632,0.00019195,2]
[392627739,1761760246372,-500.0,0.00019211,2]
[392627740,1761760246381,-500.0,0.00019211,2]
[392627741,1761760246390,-556.47528495,0.00019211,2]
[392627742,1761760246399,-500.0,0.00019221,2]
[392627743,1761760246408,-500.0,0.00019221,2]
[392627744,1761760246416,-500.0,0.00019275,2]
[392627745,1761760246425,-500.0,0.00019275,2]
[392627746,1761760246434,-151.0,0.0001933,2]
[392627747,1761760246442,-155.61541529,0.0001933,2]
[392627748,1761760246451,-157.09692995,0.0001933,2]
[392627749,1761760246461,-166.51650489,0.0001933,2]
[392627750,1761760246470,-151.0,0.0001933,2]
[392627751,1761760246479,-151.0,0.0001933,2]
[392627752,1761760246488,-272.55418288,0.0001933,2]
[392627753,1761760246497,-500.0,0.0001933,2]
[392627754,1761760246505,-1466.85478025,0.00019339,2]
[392627755,1761760246514,-151.0,0.00019385,2]
[392627756,1761760246522,-151.0,0.00019385,2]
[392627757,1761760246531,-151.0,0.00019385,2]
[392627758,1761760246540,-500.0,0.00019385,2]
[392627759,1761760246549,-204.8603252,0.0001944,2]
[392627760,1761760246557,-236.2025298,0.0001944,2]
[392627761,1761760246566,-199.79341934,0.0001944,2]
[392627762,1761760246575,-500.0,0.0001944,2]
[392627763,1761760246583,-500.0,0.00019495,2]
[392627764,1761760246592,-242.95876897,0.00019547,2]
[392627765,1761760246601,-500.0,0.00019549,2]
[392627766,1761760246610,-315.0,0.00019562,2]
[392627767,1761760246619,-500.0,0.00019604,2]
[392627768,1761760246628,-1000.0,0.00019629,2]
[392627769,1761760246637,-500.0,0.00019659,2]
[392627770,1761760246646,-153.83481755,0.00019699,4]
[392627771,1761760246656,-933.36,0.00019711,3]
[392627772,1761760246665,-466.68,0.00019711,3]
[392627773,1761760246674,-233.34,0.00019711,3]
[392627774,1761760246683,-500.0,0.00019714,2]
[392627775,1761760246692,-1000.0,0.00019721,2]
[392627776,1761760246701,-1000.0,0.00019721,2]
[392627777,1761760246710,-1000.0,0.00019721,2]
[392627778,1761760246719,-1000.0,0.00019721,2]
[392627779,1761760246730,-500.0,0.00019721,2]
[392627780,1761760246739,-256.98181285,0.00019721,2]
[392627781,1761760246748,-182.86996035,0.00019721,2]
[392627782,1761760246757,-152.85250735,0.00019721,2]
[392627783,1761760246765,-154.81124487,0.00019721,2]
[392627784,1761760246774,-151.0,0.00019721,2]
[392627785,1761760246783,-153.87697849,0.00019721,2]
[392627786,1761760246792,-151.0,0.00019721,2]
[392627787,1761760246801,-151.0,0.00019721,2]
[392627788,1761760246810,-156.6802515,0.00019721,2]
[392627789,1761760246819,-154.55051398,0.00019721,2]
[392627790,1761760246827,-281.84256414,0.0001975,2]
[392627791,1761760246837,-500.0,0.00019769,2]
[392627792,1761760246846,-174.97519796,0.00019776,2]
[392627793,1761760246855,-500.0,0.00019823,2]
[392627794,1761760246864,-500.0,0.00019878,2]
[392627795,1761760246873,-500.0,0.00019933,2]
[392627796,1761760246882,-500.0,0.00019988,2]
[392627797,1761760246891,-518.43434106,0.0002,2]
[392627798,1761760246900,-400.48946161,0.00020027,2]
[392627799,1761760246909,-498.94834872,0.00020043,2]
[392627800,1761760246918,-338.23214991,0.00020088,2]
[392627801,1761760246927,-301.49632656,0.00020152,2]
[392627802,1761760246936,-1074.74,0.00020168,2]
[392627803,1761760246945,-726.404625,0.00020187,2]
[392627804,1761760246954,-971.8350759,0.00020203,2]
[392627805,1761760246963,-500.0,0.00020268,2]
[392627806,1761760246971,-1500.0,0.00020268,2]
[392627807,1761760246981,-1500.0,0.00020268,2]
[392627808,1761760246990,-1500.0,0.00020268,2]
[392627809,1761760246999,-395.20016937,0.00020268,2]
[392627810,1761760247013,-500.0,0.00020542,2]
[392627811,1761760247022,-240.53,0.0002058,3]
[392627812,1761760247031,-49235.3182131,0.0002059,2]
[392627813,1761760247041,-151.0,0.000207,4]
[392627814,1761760247052,-1466.85478021,0.00020704,2]
[392627815,1761760247062,-500.0,0.00020816,2]
[392627816,1761760247071,-2000.0,0.00020816,2]
[392627817,1761760247080,-2000.0,0.00020816,2]
[392627818,1761760247089,-1500.0,0.00020816,2]
[392627819,1761760247099,-420.0,0.00020828,2]
[392627820,1761760247108,-2186.62892077,0.00020858,2]
[392627821,1761760247117,-1680.0,0.00020929,2]
[392627822,1761760247126,-1866.72,0.00021081,3]
[392627823,1761760247135,-933.36,0.00021081,3]
[392627824,1761760247144,-466.68,0.00021081,3]
[392627825,1761760247154,-500.0,0.0002109,2]
[392627826,1761760247163,-500.0,0.00021364,2]
[392627827,1761760247172,-2500.0,0.00021364,2]
[392627828,1761760247181,-391.488827,0.00021398,2]
[392627829,1761760247191,-151.0,0.000214,4]
[392627830,1761760247200,-631.79728326,0.00021525,3]
[392627831,1761760247209,-500.0,0.00021638,2]
[392627832,1761760247219,-324.83549765,0.0002175,2]
[392627833,1761760247228,-1601.95784642,0.00021797,2]
[392627834,1761760247238,-160.0,0.000218,2]
[392627835,1761760247247,-391.3,0.00021804,2]
[392627836,1761760247257,-500.0,0.00021912,2]
[392627837,1761760247266,-481.06,0.0002195,3]
[392627838,1761760247275,-151.0,0.00022,8]
[392627839,1761760247284,-403.72361849,0.00022026,2]
[392627840,1761760247293,-1466.85478021,0.0002207,2]
[392627841,1761760247303,-151.0,0.000221,8]
[392627842,1761760247312,-3887.34030359,0.0002218,2]
[392627843,1761760247322,-500.0,0.00022186,5]
[392627844,1761760247331,-260.0,0.00022348,2]
[392627845,1761760247340,-500.0,0.0002246,5]
[392627846,1761760247350,-391.3,0.00022549,2]
[392627847,1761760247360,-2569.52272364,0.00022579,2]
[392627848,1761760247370,-373.35639122,0.00022586,2]
[392627849,1761760247379,-1493.42556489,0.00022586,2]
[392627850,1761760247390,-151.0,0.000226,5]
[392627851,1761760247401,-151.0,0.000226,8]
[392627852,1761760247411,-151.0,0.00022626,7]
[392627853,1761760247421,-240.567493,0.00022626,7]
[392627854,1761760247432,-240.567493,0.00022626,7]
[392627855,1761760247441,-240.567493,0.00022626,7]
[392627856,1761760247450,-240.567493,0.00022626,7]
[392627857,1761760247459,-152.083479,0.00022626,7]
[392627858,1761760247469,-151.0,0.00022626,7]
[392627859,1761760247477,-403.066036,0.00022626,7]
[392627860,1761760247486,-151.0,0.00022626,7]
[392627861,1761760247496,-209.456135,0.00022626,7]
[392627862,1761760247511,-403.066036,0.00022626,7]
[392627863,1761760247520,-209.456135,0.00022626,7]
[392627864,1761760247529,-209.456135,0.00022626,7]
[392627865,1761760247539,-403.066036,0.00022626,7]
[392627866,1761760247548,-209.456135,0.00022626,7]
[392627867,1761760247558,-403.066036,0.00022626,7]
[392627868,1761760247567,-151.0,0.00022626,7]
[392627869,1761760247577,-151.0,0.00022626,7]
[392627870,1761760247586,-151.0,0.00022626,7]
[392627871,1761760247596,-151.0,0.00022626,2]
[392627872,1761760247605,-151.000006,0.00022626,2]
[392627873,1761760247615,-151.0,0.00022626,7]
[392627874,1761760247624,-151.0,0.00022626,7]
[392627875,1761760247633,-154.563957,0.00022626,7]
[392627876,1761760247642,-151.0,0.00022626,7]
[392627877,1761760247651,-674.949902,0.00022626,7]
[392627878,1761760247661,-151.0,0.00022626,7]
[392627879,1761760247671,-674.949902,0.00022626,7]
[392627880,1761760247680,-674.949902,0.00022626,7]
[392627881,1761760247690,-151.0,0.00022626,7]
[392627882,1761760247699,-674.949902,0.00022626,7]
[392627883,1761760247708,-151.0,0.00022626,7]
[392627884,1761760247718,-151.0,0.00022626,2]
[392627885,1761760247728,-1000.0,0.00022626,2]
[392627886,1761760247737,-151.0,0.00022626,2]
[392627887,1761760247746,-1000.0,0.00022626,2]
[392627888,1761760247756,-151.0,0.00022626,2]
[392627889,1761760247768,-1000.0,0.00022626,2]
[392627890,1761760247777,-1000.0,0.00022626,2]
[392627891,1761760247788,-151.0,0.00022626,2]
[392627892,1761760247797,-1000.0,0.00022626,2]
[392627893,1761760247806,-151.0,0.00022626,2]
[392627894,1761760247815,-500.0,0.00022626,2]
[392627895,1761760247825,-1000.0,0.00022626,2]
[392627896,1761760247834,-151.0,0.00022626,2]
[392627897,1761760247843,-500.0,0.00022626,2]
[392627898,1761760247852,-1000.0,0.00022626,2]
[392627899,1761760247861,-151.0,0.00022626,2]
[392627900,1761760247870,-500.0,0.00022626,2]
[392627901,1761760247879,-151.0,0.00022626,2]
[392627902,1761760247888,-500.0,0.00022626,2]
[392627903,1761760247897,-500.0,0.00022626,2]
[392627904,1761760247906,-500.0,0.00022626,2]
[392627905,1761760247914,-500.0,0.00022626,2]
[392627906,1761760247923,-191.87295522,0.00022626,2]
[392627907,1761760247932,-250.0,0.00022626,2]
[392627908,1761760247944,-250.0,0.00022626,2]
[392627909,1761760247953,-250.0,0.00022626,2]
[392627910,1761760247961,-250.0,0.00022626,2]
[392627911,1761760247970,-181.08010149,0.00022626,2]
[392627912,1761760247981,-250.0,0.00022626,2]